fUST/lending_fUST_20241116
["ID","MTS","AMOUNT","RATE_DAILY","PERIOD"]
[342349721,1731763847334,-500.0,0.00013698,2]
[342349722,1731763847343,-500.0,0.00013698,2]
[342349723,1731763847353,-500.0,0.00013698,2]
[342349724,1731763847362,-504.22219023,0.00013698,2]
[342349725,1731763847371,-500.0,0.00013698,2]
[342349726,1731763847380,-500.0,0.00013698,2]
[342349727,1731763847389,-500.0,0.00013698,2]
[342349728,1731763847399,-500.0,0.00013698,2]
[342349729,1731763847408,-581.11,0.00013698,2]
[342349730,1731763847418,-1118.42,0.00013698,2]
[342349731,1731763847427,-500.0,0.00013698,2]
[342349732,1731763847437,-500.0,0.00013698,2]
[342349733,1731763847446,-500.0,0.00013698,2]
[342349734,1731763847456,-500.0,0.00013698,2]
[342349735,1731763847466,-500.0,0.00013698,2]
[342349736,1731763847475,-500.0,0.00013698,2]
[342349737,1731763847485,-996.53,0.00013698,2]
[342349738,1731763847495,-182.03736068,0.00013698,2]
[342349739,1731763847505,-625.42045839,0.00013698,2]
[342349740,1731763847518,-500.0,0.00013698,2]
[342349741,1731763847528,-500.0,0.00013698,2]
[342349742,1731763847538,-500.0,0.00013698,2]
[342349743,1731763847548,-500.0,0.00013698,2]
[342349744,1731763847558,-442.53,0.00013698,2]
[342349745,1731763847567,-273.56318083,0.00013698,2]
[342349746,1731763847576,-325.06644976,0.00013698,2]
[342349747,1731763847586,-500.0,0.00013698,2]
[342349748,1731763847595,-500.0,0.00013698,2]
[342349749,1731763847604,-500.0,0.00013698,2]
[342349750,1731763847613,-501.39126455,0.00013698,2]
[342349751,1731763847623,-500.0,0.00013698,2]
[342349752,1731763847632,-505.64140249,0.00013698,2]
[342349753,1731763847642,-500.0,0.00013698,2]
[342349754,1731763847651,-500.0,0.00013698,2]
[342349755,1731763847660,-550.7068468,0.00013698,2]
[342349756,1731763847669,-1477.02,0.00013698,2]
[342349757,1731763847679,-500.0,0.00013698,2]
[342349758,1731763847689,-504.98896754,0.00013698,2]
[342349759,1731763847698,-500.0,0.00013698,2]
[342349760,1731763847707,-500.0,0.00013698,2]
[342349761,1731763847717,-500.0,0.00013698,2]
[342349762,1731763847727,-517.73199213,0.00013698,2]
[342349763,1731763847736,-500.0,0.00013698,2]
[342349764,1731763847746,-500.0,0.00013698,2]
[342349765,1731763847755,-500.0,0.00013698,2]
[342349766,1731763847768,-718.07,0.00013698,2]
[342349767,1731763847777,-500.0,0.00013698,2]
[342349768,1731763847787,-500.0,0.00013698,2]
[342349769,1731763847796,-484.58576487,0.00013698,2]
[342349770,1731763847805,-1184.69,0.00013698,2]
[342349771,1731763847815,-500.0,0.00013698,2]
[342349772,1731763847824,-3262.57,0.00013698,2]
[342349773,1731763847834,-746.84,0.00013698,2]
[342349774,1731763847843,-500.0,0.00013698,2]
[342349775,1731763847853,-601.15369467,0.00013698,2]
[342349776,1731763847862,-519.77,0.00013698,2]
[342349777,1731763847872,-506.2591578,0.00013698,2]
[342349778,1731763847882,-500.0,0.00013698,2]
[342349779,1731763847892,-500.0,0.00013698,2]
[342349780,1731763847901,-500.0,0.00013698,2]
[342349781,1731763847911,-500.0,0.00013698,2]
[342349782,1731763847921,-510.01224426,0.00013698,2]
[342349783,1731763847931,-158.44629662,0.00013698,2]
[342349784,1731763847941,-500.0,0.00013698,2]
[342349785,1731763847951,-500.0,0.00013698,2]
[342349786,1731763847963,-500.0,0.00013698,2]
[342349787,1731763847973,-611.5,0.00013698,2]
[342349788,1731763847983,-500.0,0.00013698,2]
[342349789,1731763847992,-1175.14,0.00013698,2]
[342349790,1731763848002,-2398.97,0.00013698,2]
[342349791,1731763848011,-12434.39,0.00013698,2]
[342349792,1731763848022,-500.0,0.00013698,2]
[342349793,1731763848032,-500.0,0.00013698,2]
[342349794,1731763848041,-500.0,0.00013698,2]
[342349795,1731763848050,-500.0,0.00013698,2]
[342349796,1731763848059,-500.0,0.00013698,2]
[342349797,1731763848069,-1905.37,0.00013698,2]
[342349798,1731763848079,-503.09023533,0.00013698,2]
[342349799,1731763848088,-503.65622894,0.00013698,2]
[342349800,1731763848104,-579.06,0.00013698,2]
[342349801,1731763848114,-500.0,0.00013698,2]
[342349802,1731763848123,-1949.59,0.00013698,2]
[342349803,1731763848132,-500.0,0.00013698,2]
[342349804,1731763848142,-689.11,0.00013698,2]
[342349805,1731763848154,-503.86868918,0.00013698,2]
[342349806,1731763848164,-1277.9,0.00013698,2]
[342349807,1731763848174,-500.0,0.00013698,2]
[342349808,1731763848183,-500.0,0.00013698,2]
[342349809,1731763848194,-500.0,0.00013698,2]
[342349810,1731763848204,-500.0,0.00013698,2]
[342349811,1731763848214,-501.46243381,0.00013698,2]
[342349812,1731763848224,-500.0,0.00013698,2]
[342349813,1731763848234,-587.55744948,0.00013698,2]
[342349814,1731763848243,-1287.46,0.00013698,2]
[342349815,1731763848253,-2976.13,0.00013698,2]
[342349816,1731763848264,-500.0,0.00013698,2]
[342349817,1731763848273,-4572.62,0.00013698,2]
[342349818,1731763848283,-500.0,0.00013698,2]
[342349819,1731763848292,-500.0,0.00013698,2]
[342349820,1731763848302,-1462.0,0.00013698,2]
[342349821,1731763848313,-26126.25,0.00013698,2]
[342349822,1731763848323,-500.0,0.00013698,2]
[342349823,1731763848333,-500.0,0.00013698,2]
[342349824,1731763848342,-1930.71,0.00013698,2]
[342349825,1731763848352,-4397.48,0.00013698,2]
[342349826,1731763848362,-625.44,0.00013698,2]
[342349827,1731763848372,-500.0,0.00013698,2]
[342349828,1731763848382,-500.0,0.00013698,2]
[342349829,1731763848393,-500.0,0.00013698,2]
[342349830,1731763848403,-500.0,0.00013698,2]
[342349831,1731763848413,-505.78092432,0.00013698,2]
[342349832,1731763848423,-500.0,0.00013698,2]
[342349833,1731763848433,-500.0,0.00013698,2]
[342349834,1731763848443,-500.0,0.00013698,2]
[342349835,1731763848454,-500.0,0.00013698,2]
[342349836,1731763848463,-626.02165175,0.00013698,2]
[342349837,1731763848473,-500.0,0.00013698,2]
[342349838,1731763848483,-1056.1,0.00013698,2]
[342349839,1731763848493,-500.0,0.00013698,2]
[342349840,1731763848503,-1289.08,0.00013698,2]
[342349841,1731763848514,-4299.18,0.00013698,2]
[342349842,1731763848524,-2591.1,0.00013698,2]
[342349843,1731763848534,-1802.67,0.00013698,2]
[342349844,1731763848545,-500.0,0.00013698,2]
[342349845,1731763848555,-676.2,0.00013698,2]
[342349846,1731763848565,-5178.63,0.00013698,2]
[342349847,1731763848575,-500.0,0.00013698,2]
[342349848,1731763848584,-15610.89,0.00013698,2]
[342349849,1731763848595,-500.0,0.00013698,2]
[342349850,1731763848605,-500.0,0.00013698,2]
[342349851,1731763848614,-500.0,0.00013698,2]
[342349852,1731763848624,-504.94237343,0.00013698,2]
[342349853,1731763848634,-500.0,0.00013698,2]
[342349854,1731763848643,-18701.71,0.00013698,2]
[342349855,1731763848652,-500.0,0.00013698,2]
[342349856,1731763848662,-704.02,0.00013698,2]
[342349857,1731763848671,-500.0,0.00013698,2]
[342349858,1731763848680,-500.0,0.00013698,2]
[342349859,1731763848689,-500.0,0.00013698,2]
[342349860,1731763848699,-500.0,0.00013698,2]
[342349861,1731763848708,-3463.72,0.00013698,2]
[342349862,1731763848717,-500.0,0.00013698,2]
[342349863,1731763848727,-500.0,0.00013698,2]
[342349864,1731763848737,-500.0,0.00013698,2]
[342349865,1731763848747,-500.0,0.00013698,2]
[342349866,1731763848756,-500.0,0.00013698,2]
[342349867,1731763848769,-1795.49,0.00013698,2]
[342349868,1731763848779,-516.57724264,0.00013698,2]
[342349869,1731763848789,-14483.78,0.00013698,2]
[342349870,1731763848799,-575.625186,0.00013699,2]
[342349871,1731763848908,-8751.68856813,0.00013699,2]
[342349942,1731765032578,-5029.978754,0.0001236,2]
[342349945,1731765032773,-300.0,0.0001261,2]
[342349947,1731765032781,-300.0,0.0001261,2]
[342349949,1731765032788,-5029.978754,0.00012611,2]
[342349951,1731765032795,-2064.4341,0.00013468,2]
[342349953,1731765032802,-10496.0243581,0.00013486,2]
[342349955,1731765032810,-681.01354304,0.00013598,2]
[342349957,1731765032818,-394.89179313,0.00013698,2]
[342349959,1731765032826,-254.26517528,0.00013698,2]
[342349961,1731765032834,-393.07062415,0.00013698,2]
[342349963,1731765032842,-500.0,0.00013698,2]
[342349965,1731765032851,-500.0,0.00013698,2]
[342349968,1731765032861,-500.0,0.00013698,2]
[342349970,1731765032870,-207.02483175,0.00013698,2]
[342349972,1731765032880,-219.54403521,0.00013698,2]
[342349974,1731765032889,-214.83266998,0.00013698,2]
[342349976,1731765032899,-251.58294457,0.00013698,2]
[342349978,1731765032908,-500.0,0.00013698,2]
[342349980,1731765032917,-157.737,0.00013698,2]
[342349982,1731765032927,-500.0,0.00013698,2]
[342349984,1731765032944,-500.0,0.00013698,2]
[342349986,1731765032957,-500.0,0.00013698,2]
[342349988,1731765032967,-503.67101954,0.00013698,2]
[342349990,1731765032977,-500.0,0.00013698,2]
[342349992,1731765032986,-500.0,0.00013698,2]
[342349994,1731765032995,-500.0,0.00013698,2]
[342349996,1731765033005,-500.0,0.00013698,2]
[342349998,1731765033015,-500.0,0.00013698,2]
[342350000,1731765033024,-500.0,0.00013698,2]
[342350002,1731765033034,-500.0,0.00013698,2]
[342350004,1731765033044,-500.0,0.00013698,2]
[342350006,1731765033054,-500.0,0.00013698,2]
[342350008,1731765033064,-500.0,0.00013698,2]
[342350010,1731765033074,-500.0,0.00013698,2]
[342350012,1731765033084,-1661.44,0.00013698,2]
[342350014,1731765033094,-1584.38,0.00013698,2]
[342350016,1731765033104,-500.0,0.00013698,2]
[342350018,1731765033115,-603.47,0.00013698,2]
[342350020,1731765033124,-720.57,0.00013698,2]
[342350022,1731765033136,-601.2260033,0.00013698,2]
[342350024,1731765033146,-867.95,0.00013698,2]
[342350026,1731765033156,-500.0,0.00013698,2]
[342350028,1731765033166,-500.0,0.00013698,2]
[342350030,1731765033176,-1696.5,0.00013698,2]
[342350032,1731765033191,-500.0,0.00013698,2]
[342350034,1731765033200,-2336.0,0.00013698,2]
[342350036,1731765033210,-1451.23,0.00013698,2]
[342350038,1731765033221,-325.45843893,0.00013698,2]
[342350040,1731765033231,-682.61,0.00013698,2]
[342350041,1731765033241,-602.43,0.00013698,2]
[342350043,1731765033251,-1400.14,0.00013698,2]
[342350046,1731765033262,-1313.44,0.00013698,2]
[342350048,1731765033272,-500.0,0.00013698,2]
[342350050,1731765033281,-500.0,0.00013698,2]
[342350051,1731765033291,-500.0,0.00013698,2]
[342350054,1731765033301,-556.9,0.00013698,2]
[342350055,1731765033310,-500.0,0.00013698,2]
[342350058,1731765033320,-955.01,0.00013698,2]
[342350060,1731765033330,-500.0,0.00013698,2]
[342350062,1731765033339,-1071.82,0.00013698,2]
[342350064,1731765033348,-272.92609288,0.00013698,2]
[342350065,1731765033358,-500.0,0.00013698,2]
[342350067,1731765033367,-500.0,0.00013698,2]
[342350069,1731765033377,-500.0,0.00013698,2]
[342350071,1731765033387,-14960.44,0.00013698,2]
[342350074,1731765033396,-3319.4,0.00013698,2]
[342350076,1731765033406,-500.0,0.00013698,2]
[342350078,1731765033416,-500.0,0.00013698,2]
[342350080,1731765033426,-688.15,0.00013698,2]
[342350082,1731765033447,-487.20169142,0.00013698,2]
[342350084,1731765033457,-13880.28,0.00013698,2]
[342350086,1731765033467,-500.0,0.00013698,2]
[342350088,1731765033477,-318.12478223,0.00013698,2]
[342350090,1731765033487,-1415.48,0.00013698,2]
[342350092,1731765033499,-500.0,0.00013698,2]
[342350094,1731765033510,-500.0,0.00013698,2]
[342350096,1731765033520,-1135.33,0.00013698,2]
[342350098,1731765033530,-500.0,0.00013698,2]
[342350100,1731765033541,-3126.63,0.00013698,2]
[342350102,1731765033551,-715.72,0.00013698,2]
[342350104,1731765033560,-500.0,0.00013698,2]
[342350106,1731765033572,-500.0,0.00013698,2]
[342350108,1731765033581,-500.0,0.00013698,2]
[342350110,1731765033591,-2299.01,0.00013698,2]
[342350112,1731765033601,-500.0,0.00013698,2]
[342350114,1731765033611,-586.02,0.00013698,2]
[342350116,1731765033622,-500.0,0.00013698,2]
[342350118,1731765033632,-1825.98,0.00013698,2]
[342350120,1731765033642,-500.0,0.00013698,2]
[342350122,1731765033651,-500.0,0.00013698,2]
[342350124,1731765033661,-1126.17,0.00013698,2]
[342350127,1731765033671,-1868.36,0.00013698,2]
[342350128,1731765033684,-500.0,0.00013698,2]
[342350131,1731765033694,-11916.29,0.00013698,2]
[342350133,1731765033704,-500.0,0.00013698,2]
[342350134,1731765033713,-500.0,0.00013698,2]
[342350136,1731765033723,-660.39,0.00013698,2]
[342350139,1731765033732,-2852.12,0.00013698,2]
[342350140,1731765033742,-1224.65,0.00013698,2]
[342350142,1731765033752,-500.0,0.00013698,2]
[342350144,1731765033761,-500.0,0.00013698,2]
[342350147,1731765033771,-25037.65,0.00013698,2]
[342350149,1731765033780,-1233.82,0.00013698,2]
[342350151,1731765033790,-500.0,0.00013698,2]
[342350153,1731765033799,-1850.26,0.00013698,2]
[342350155,1731765033808,-500.0,0.00013698,2]
[342350157,1731765033818,-500.0,0.00013698,2]
[342350159,1731765033827,-4382.09,0.00013698,2]
[342350161,1731765033837,-599.38,0.00013698,2]
[342350163,1731765033847,-420.43265856,0.00013698,2]
[342350165,1731765033856,-500.0,0.00013698,2]
[342350167,1731765033866,-500.0,0.00013698,2]
[342350169,1731765033875,-500.0,0.00013698,2]
[342350171,1731765033885,-1401.08,0.00013698,2]
[342350173,1731765033894,-4120.05,0.00013698,2]
[342350175,1731765033904,-500.0,0.00013698,2]
[342350177,1731765033913,-4214.25,0.00013698,2]
[342350179,1731765033923,-1727.56,0.00013698,2]
[342350181,1731765033936,-648.03,0.00013698,2]
[342350183,1731765033947,-500.0,0.00013698,2]
[342350185,1731765033957,-4962.86,0.00013698,2]
[342350186,1731765033967,-500.0,0.00013698,2]
[342350187,1731765033977,-1235.37,0.00013698,2]
[342350188,1731765033986,-314.86,0.00013698,2]
[342350190,1731765033995,-500.0,0.00013698,2]
[342350192,1731765034005,-500.0,0.00013698,2]
[342350193,1731765034015,-2483.14,0.00013698,2]
[342350194,1731765034025,-500.0,0.00013698,2]
[342350195,1731765034036,-500.0,0.00013698,2]
[342350196,1731765034046,-674.69,0.00013698,2]
[342350197,1731765034057,-485.40638938,0.00013698,2]
[342350198,1731765034067,-1720.68,0.00013698,2]
[342350199,1731765034076,-500.0,0.00013698,2]
[342350200,1731765034086,-500.0,0.00013698,2]
[342350201,1731765034095,-752.85,0.00013698,2]
[342350202,1731765034105,-17922.47,0.00013698,2]
[342350203,1731765034115,-500.0,0.00013698,2]
[342350204,1731765034124,-287.812593,0.00013699,2]
[342350205,1731765034134,-6807.954046,0.00013699,2]
[342350206,1731765034144,-500.0,0.00013699,2]
[342350207,1731765034153,-500.0,0.00013699,2]
[342350208,1731765034162,-505.75329978,0.00013699,2]
[342350209,1731765034172,-1112.0,0.0001375,2]
[342350210,1731765034184,-1309.0797977,0.0001378,2]
[342350211,1731765034194,-307.0,0.000138,2]
[342350212,1731765034203,-420.0,0.00013834,2]
[342350213,1731765034213,-648.848,0.00013843,2]
[342350214,1731765034224,-151.0,0.00013843,2]
[342350215,1731765034233,-3200.0,0.00013843,2]
[342350216,1731765034242,-420.0,0.00013871,2]
[342350217,1731765034251,-451.33233523,0.00013872,2]
[342350218,1731765034261,-500.0,0.00013972,2]
[342350219,1731765034271,-500.0,0.00013972,2]
[342350220,1731765034280,-500.0,0.00013972,2]
[342350221,1731765034289,-500.0,0.00013972,2]
[342350222,1731765034299,-500.0,0.00013972,2]
[342350223,1731765034308,-383.39448165,0.00013972,2]
[342350224,1731765034317,-500.0,0.00013972,2]
[342350225,1731765034327,-500.0,0.00013972,2]
[342350226,1731765034336,-151.0,0.00013972,2]
[342350227,1731765034346,-500.0,0.00013972,2]
[342350228,1731765034355,-500.0,0.00013972,2]
[342350229,1731765034365,-500.0,0.00013972,2]
[342350230,1731765034374,-500.0,0.00013972,2]
[342350231,1731765034383,-500.0,0.00013972,2]
[342350232,1731765034393,-500.0,0.00013972,2]
[342350233,1731765034402,-500.0,0.00013972,2]
[342350234,1731765034412,-500.0,0.00013972,2]
[342350235,1731765034422,-500.0,0.00013972,2]
[342350236,1731765034434,-500.0,0.00013972,2]
[342350237,1731765034444,-1661.44,0.00013972,2]
[342350238,1731765034454,-1584.38,0.00013972,2]
[342350239,1731765034464,-500.0,0.00013972,2]
[342350240,1731765034474,-603.47,0.00013972,2]
[342350241,1731765034484,-720.57,0.00013972,2]
[342350242,1731765034495,-867.95,0.00013972,2]
[342350243,1731765034506,-500.0,0.00013972,2]
[342350244,1731765034515,-500.0,0.00013972,2]
[342350245,1731765034525,-1696.5,0.00013972,2]
[342350246,1731765034535,-500.0,0.00013972,2]
[342350247,1731765034545,-1087.71302296,0.00013972,2]
[342350248,1731765034555,-1451.23,0.00013972,2]
[342350249,1731765034565,-227.886113,0.00013972,2]
[342350250,1731765034576,-682.61,0.00013972,2]
[342350251,1731765034585,-602.43,0.00013972,2]
[342350252,1731765034595,-1400.14,0.00013972,2]
[342350253,1731765034606,-1313.44,0.00013972,2]
[342350254,1731765034616,-500.0,0.00013972,2]
[342350255,1731765034625,-500.0,0.00013972,2]
[342350256,1731765034635,-500.0,0.00013972,2]
[342350257,1731765034644,-556.9,0.00013972,2]
[342350258,1731765034654,-500.0,0.00013972,2]
[342350259,1731765034663,-955.01,0.00013972,2]
[342350260,1731765034673,-500.0,0.00013972,2]
[342350261,1731765034686,-1071.82,0.00013972,2]
[342350262,1731765034696,-500.0,0.00013972,2]
[342350263,1731765034705,-449.29245561,0.00013972,2]
[342350264,1731765034715,-500.0,0.00013972,2]
[342350265,1731765034725,-14960.44,0.00013972,2]
[342350266,1731765034735,-3319.4,0.00013972,2]
[342350267,1731765034745,-500.0,0.00013972,2]
[342350268,1731765034755,-500.0,0.00013972,2]
[342350269,1731765034764,-688.15,0.00013972,2]
[342350270,1731765034774,-13880.28,0.00013972,2]
[342350271,1731765034784,-500.0,0.00013972,2]
[342350272,1731765034793,-1415.48,0.00013972,2]
[342350273,1731765034803,-500.0,0.00013972,2]
[342350274,1731765034813,-500.0,0.00013972,2]
[342350275,1731765034823,-1135.33,0.00013972,2]
[342350276,1731765034832,-500.0,0.00013972,2]
[342350277,1731765034842,-3126.63,0.00013972,2]
[342350278,1731765034852,-715.72,0.00013972,2]
[342350279,1731765034861,-500.0,0.00013972,2]
[342350280,1731765034871,-500.0,0.00013972,2]
[342350281,1731765034881,-500.0,0.00013972,2]
[342350282,1731765034891,-2299.01,0.00013972,2]
[342350283,1731765034900,-500.0,0.00013972,2]
[342350284,1731765034910,-586.02,0.00013972,2]
[342350285,1731765034919,-500.0,0.00013972,2]
[342350286,1731765034931,-1825.98,0.00013972,2]
[342350287,1731765034940,-500.0,0.00013972,2]
[342350288,1731765034951,-500.0,0.00013972,2]
[342350289,1731765034960,-665.37820006,0.00013972,2]
[342350485,1731765040598,-1404.11593787,0.00013598,2]
[342350488,1731765040609,-6431.57270677,0.00013698,2]
[342350813,1731765950478,226.55,0.0001107,2]
[342350814,1731765983595,226.0,0.0001,10]
[342350883,1731766231991,-300.0,0.00011986,2]
[342350886,1731766232001,-27.75440269,0.00012068,2]
[342351441,1731766237965,-319.71266841,0.00012068,2]
[342351443,1731766237975,-157.35627254,0.0001226,2]
[342351445,1731766237986,-300.0,0.00012972,2]
[342351447,1731766237995,-300.0,0.00012972,2]
[342351449,1731766238005,-210.49218694,0.00012973,2]
[342351459,1731766238087,-289.50781306,0.00012973,2]
[342351461,1731766238096,-500.0,0.00012973,2]
[342351462,1731766238106,-308.8694995,0.00012973,2]
[342351628,1731766239766,-102.91971982,0.00012973,2]
[342351631,1731766239776,-500.0,0.00012973,2]
[342351633,1731766239786,-199.62686539,0.00012973,2]
[342351635,1731766239795,-96.16855479,0.00012973,2]
[342351637,1731766239807,-403.83144521,0.00012973,2]
[342351639,1731766239816,-76.97150663,0.00012973,2]
[342351915,1731766243456,-423.02849337,0.00012973,2]
[342351917,1731766243466,-500.34133077,0.00012973,2]
[342351919,1731766243476,-500.0,0.00012973,2]
[342351921,1731766243486,-468.02351854,0.00012973,2]
[342351923,1731766243498,-31.97648146,0.00012973,2]
[342351924,1731766243508,-561.38520729,0.00012973,2]
[342351925,1731766243518,-500.0,0.00012973,2]
[342351926,1731766243528,-500.0,0.00012973,2]
[342351927,1731766243537,-336.46681587,0.00012973,2]
[342351938,1731766245952,-13.46208645,0.00012973,2]
[342351939,1731766245963,-363.95118183,0.00012973,2]
[342351940,1731766245972,-160.68743417,0.00012973,2]
[342351941,1731766245982,-500.0,0.00012973,2]
[342351942,1731766245991,-500.0,0.00012973,2]
[342351943,1731766246000,-263.26119542,0.00013,2]
[342351944,1731766246011,-263.26119542,0.00013,2]
[342351945,1731766246020,-263.26119542,0.00013,2]
[342351946,1731766246030,-10159.35904204,0.00013,2]
[342351949,1731766925208,1282.17477831,0.00025999,60]
[342352204,1731767435296,-2275.40793513,0.00011584,2]
[342352211,1731767435344,-724.59206487,0.00011584,2]
[342352213,1731767435353,-165.272139,0.00011943,2]
[342352215,1731767435363,-165.272139,0.00011958,2]
[342352217,1731767435371,-165.272139,0.00011973,2]
[342352219,1731767435380,-165.272139,0.00011988,2]
[342352221,1731767435389,-165.272139,0.00012003,2]
[342352223,1731767435398,-5164.9565785,0.00012016,2]
[342352225,1731767435407,-300.0,0.00012866,2]
[342352227,1731767435417,-300.0,0.00012866,2]
[342352228,1731767435426,-5399.72687668,0.00012867,2]
[342352476,1731767438208,-649.37075351,0.00012867,2]
[342352553,1731767443053,-2036.1909591,0.00012867,2]
[342352556,1731767443160,-2406.43890564,0.00012867,2]
[342352557,1731767443170,-1802.73514588,0.000129,2]
[342352558,1731767443179,-2072.57406858,0.000129,2]
[342352559,1731767443188,-500.0,0.00012973,2]
[342352561,1731767443197,-500.0,0.00012973,2]
[342352563,1731767443206,-500.0,0.00012973,2]
[342352564,1731767443216,-481.41978045,0.00012973,2]
[342352565,1731767443225,-500.0,0.00012973,2]
[342352566,1731767443234,-500.64640475,0.00012973,2]
[342352567,1731767443244,-12677.22285024,0.00013,2]
[342352582,1731767465369,281.61,0.00010959,2]
[342352584,1731767577024,1056.40593581,5e-05,14]
[342352587,1731768019151,116950.0,0.00024,60]
[342352593,1731768155410,-1000.0,0.00028502,120]
[342352594,1731768155434,-1000.0,0.00028502,120]
[342352595,1731768155456,-1005.61203897,0.00028502,30]
[342352596,1731768155478,-180.20183472,0.00028502,30]
[342352597,1731768155501,-527.9413442,0.00028502,120]
[342352598,1731768155528,-1032.46705138,0.00028502,120]
[342352599,1731768155552,-213.86144629,0.00028502,120]
[342352600,1731768155577,-667.6545012,0.00028502,120]
[342352601,1731768155600,-174.74130341,0.00028502,30]
[342352602,1731768155625,-375.66236681,0.00028502,30]
[342352603,1731768155649,-306.38249828,0.00028502,120]
[342352604,1731768155672,-320.00415853,0.00028502,120]
[342352605,1731768155696,-257.42030906,0.00028502,120]
[342352606,1731768155719,-1000.0,0.00028502,90]
[342352607,1731768155743,-4998.24119748,0.00028502,120]
[342352608,1731768155767,-288.0,0.00028502,120]
[342352609,1731768155791,-1000.0,0.00028502,90]
[342352610,1731768155815,-1810.44582313,0.00028502,120]
[342352611,1731768155839,-300.209999,0.00028502,120]
[342352612,1731768155863,-199999.999998,0.00028502,60]
[342352613,1731768155886,-5078.22617847,0.00028502,120]
[342352614,1731768155912,-1000.0,0.00028502,60]
[342352615,1731768155936,-1000.0,0.00028502,60]
[342352616,1731768155960,-1000.0,0.00028502,30]
[342352617,1731768155983,-1000.0,0.00028502,30]
[342352618,1731768156006,-9506.82568509,0.00028502,120]
[342352619,1731768156034,-1621.11664574,0.00028502,120]
[342352620,1731768156058,-394.3,0.00028502,30]
[342352621,1731768156082,-371.299999,0.00028502,30]
[342352622,1731768156105,-371.299999,0.00028502,60]
[342352623,1731768156130,-371.299999,0.00028502,90]
[342352624,1731768156152,-371.299999,0.00028502,120]
[342352625,1731768156175,-664.04748904,0.00028502,90]
[342352626,1731768156196,-916.05993328,0.00028502,60]
[342352627,1731768156218,-315.5928951,0.00028502,30]
[342352628,1731768156241,-259559.78530682,0.00028502,30]
[342352629,1731768161142,-42149.21469318,0.00028502,30]
[342352630,1731768161166,-186.75,0.00028502,30]
[342352631,1731768161190,-176.80405183,0.00028502,120]
[342352632,1731768161212,-3046.0,0.00028502,30]
[342352633,1731768161235,-171.724121,0.00028502,30]
[342352634,1731768161264,-1683.16,0.00028502,120]
[342352635,1731768161288,-1683.16,0.00028502,120]
[342352636,1731768161312,-1683.16,0.00028502,120]
[342352637,1731768161334,-1683.16,0.00028502,120]
[342352638,1731768161357,-1683.16,0.00028502,120]
[342352639,1731768161383,-1683.16,0.00028502,120]
[342352640,1731768161406,-1683.16,0.00028502,120]
[342352641,1731768161430,-1683.16,0.00028502,120]
[342352642,1731768161454,-1683.16,0.00028502,120]
[342352643,1731768161478,-1683.16,0.00028502,120]
[342352644,1731768161502,-1683.16,0.00028502,120]
[342352645,1731768161529,-1683.16,0.00028502,120]
[342352646,1731768161555,-1683.16,0.00028502,120]
[342352647,1731768161579,-1683.16,0.00028502,120]
[342352648,1731768161604,-1683.16,0.00028502,120]
[342352649,1731768161631,-1683.16,0.00028502,120]
[342352650,1731768161654,-1683.16,0.00028502,120]
[342352651,1731768161677,-1683.16,0.00028502,120]
[342352652,1731768161702,-1683.16,0.00028502,120]
[342352653,1731768161726,-1683.16,0.00028502,120]